fUST/lending_fUST_20250602
["ID","MTS","AMOUNT","RATE_DAILY","PERIOD"]
[363639187,1748795438342,-239.776462,0.00015944,2]
[363639189,1748795438352,-332.955185,0.00015945,2]
[363639191,1748795438362,-5000.0,0.00016111,2]
[363639193,1748795438372,-1200.0,0.00016437,2]
[363639195,1748795438381,-430.0,0.00016438,2]
[363639197,1748795438391,-430.0,0.00016438,2]
[363639199,1748795438403,-376.32795674,0.00016438,2]
[363639201,1748795438412,-430.0,0.00016438,2]
[363639203,1748795438422,-185.17134233,0.00017511,2]
[363639205,1748795438432,-1341.0,0.00018053,2]
[363639207,1748795438441,-160.0,0.00018435,2]
[363639209,1748795438451,-604.9,0.00019313,2]
[363639211,1748795438461,-232.20741836,0.00020067,2]
[363639213,1748795438472,-215.86639869,0.000209,4]
[363639215,1748795438481,-1209.8,0.00021069,2]
[363639217,1748795438491,-300.0,0.00021294,2]
[363639219,1748795438504,-300.0,0.00021294,2]
[363639221,1748795438514,-300.0,0.00021294,2]
[363639223,1748795438523,-300.0,0.00021294,2]
[363639225,1748795438533,-10254.4544634,0.00021295,2]
[363639227,1748795438543,-500.0,0.00021843,2]
[363639229,1748795438552,-204.51507535,0.00021843,2]
[363639231,1748795438562,-500.0,0.00021843,2]
[363639233,1748795438573,-201.58550337,0.00021843,2]
[363639235,1748795438582,-500.0,0.00021843,2]
[363639237,1748795438593,-8760.47892465,0.00021844,2]
[363639239,1748795438604,-500.0,0.00022259,2]
[363639242,1748795438618,-1814.71,0.00022824,2]
[363639244,1748795438628,-499.99999901,0.0002298,2]
[363639246,1748795438637,-286.06,0.0002299,10]
[363639247,1748795438648,-545.5,0.0002299,10]
[363639249,1748795438658,-500.0,0.00022999,2]
[363639251,1748795438668,-711.7219604,0.00022999,2]
[363639253,1748795438678,-711.7219604,0.00022999,2]
[363639256,1748795438688,-500.0,0.00022999,2]
[363639258,1748795438699,-711.7219604,0.00022999,2]
[363639259,1748795438709,-711.7219604,0.00022999,2]
[363639261,1748795438719,-153.01480786,0.00022999,2]
[363639264,1748795438729,-500.0,0.00022999,2]
[363639266,1748795438739,-711.7219604,0.00022999,2]
[363639268,1748795438747,-711.7219604,0.00022999,2]
[363639270,1748795438758,-500.0,0.00022999,2]
[363639272,1748795438768,-711.7219604,0.00022999,2]
[363639274,1748795438778,-500.0,0.00022999,2]
[363639276,1748795438788,-711.7219604,0.00022999,2]
[363639278,1748795438797,-500.0,0.00022999,2]
[363639280,1748795438807,-711.7219604,0.00022999,2]
[363639282,1748795438816,-500.0,0.00022999,2]
[363639284,1748795438826,-711.7219604,0.00022999,2]
[363639286,1748795438835,-500.0,0.00022999,2]
[363639288,1748795438844,-500.0,0.00022999,2]
[363639290,1748795438854,-711.7219604,0.00022999,2]
[363639307,1748795438863,-281.58994625,0.00022999,2]
[363639309,1748795439027,-500.0,0.00022999,2]
[363639311,1748795439037,-711.7219604,0.00022999,2]
[363639313,1748795439047,-711.7219604,0.00022999,2]
[363639315,1748795439056,-500.0,0.00022999,2]
[363639317,1748795439065,-711.7219604,0.00022999,2]
[363639319,1748795439075,-500.0,0.00022999,2]
[363639321,1748795439085,-500.0,0.00022999,2]
[363639323,1748795439094,-711.7219604,0.00022999,2]
[363639325,1748795439104,-711.7219604,0.00022999,2]
[363639327,1748795439114,-711.7219604,0.00022999,2]
[363639329,1748795439124,-43244.14857093,0.00023,2]
[363639331,1748795439134,-188005.57299744,0.00023,3]
[363639333,1748795439143,-115186.36249524,0.00023,20]
[363639365,1748795439450,-18035.87209256,0.00023,20]
[363639367,1748795439461,-1326.31399406,0.00023,2]
[363639370,1748795439470,-160.0,0.00023,3]
[363639372,1748795439480,-153.0,0.00023041,2]
[363639374,1748795439490,-153.0,0.00023041,2]
[363639377,1748795439500,-420.0,0.00023157,2]
[363639380,1748795439520,-420.0,0.00023157,2]
[363639382,1748795439530,-1309.656481,0.00023372,3]
[363639384,1748795439540,-1802.47377395,0.000237,30]
[363639386,1748795439551,-153.0,0.000237,2]
[363639388,1748795439561,-229.3709046,0.00023763,3]
[363639390,1748795439570,-150.0,0.00023773,2]
[363639392,1748795439580,-800.0,0.00023789,2]
[363639394,1748795439590,-160.0,0.00023795,2]
[363639396,1748795439600,-423.51412927,0.00023795,2]
[363639398,1748795439613,-229.3709046,0.00023795,2]
[363639401,1748795439623,-151.0,0.000238,7]
[363639403,1748795439633,-151.494595,0.000238,7]
[363639405,1748795439644,-2000.0,0.000238,2]
[363639407,1748795439654,-2000.0,0.000238,2]
[363639409,1748795439664,-2000.0,0.000238,2]
[363639411,1748795439675,-151.0,0.000238,7]
[363639413,1748795439685,-434.068318,0.000238,7]
[363639415,1748795439695,-434.068318,0.000238,7]
[363639417,1748795439706,-46115.66870098,0.000238,2]
[363639703,1748795442699,151.0,0.00024658,120]
[363639872,1748795444159,-430.0,0.00016438,2]
[363639874,1748795444169,-454.59,0.0002379,10]
[363639876,1748795444179,-300.0,0.00023799,2]
[363639878,1748795444188,-75103.82171551,0.000238,2]
[363640697,1748795453894,195.377055,0.00013699,2]
[363641256,1748795472399,151.0,0.00024658,120]
[363641258,1748795565166,249.0,0.00024658,120]
[363641261,1748795820439,1485.2961899,0.00015437,2]
[363641263,1748795997095,18573.9422456,0.00015436,2]
[363641266,1748796060101,380.275325,0.00015434,2]
[363641268,1748796129772,174.8095544,0.00015436,2]
[363641273,1748796144992,172.1159415,0.00015434,2]
[363641275,1748796204783,5000.0,0.0001552,2]
[363641283,1748796319656,157.61004196,0.00015312,2]
[363641286,1748796409604,217.3350881,0.0001541,2]
[363641287,1748796410381,5000.0,0.0001552,2]
[363641292,1748796435092,-1558.770747,0.00015786,2]
[363641293,1748796446099,-3441.229253,0.00015786,2]
[363641294,1748796446126,-262.68340326,0.00015945,2]
[363641295,1748796446154,-156.93843969,0.00016333,2]
[363641296,1748796446176,-1992.32176176,0.00016338,2]
[363641297,1748796446197,-444.83681827,0.000164,2]
[363641298,1748796446218,-156.587,0.00016428,2]
[363641299,1748796446241,-1200.0,0.00016431,2]
[363641300,1748796446263,-300.0,0.00016431,2]
[363641301,1748796446285,-300.0,0.00016432,2]
[363641302,1748796446306,-300.0,0.00016432,2]
[363641303,1748796446328,-300.0,0.00016432,2]
[363641304,1748796446519,-500.0,0.00016432,2]
[363641305,1748796446543,-500.0,0.00016432,2]
[363641306,1748796446567,-500.0,0.00016432,2]
[363641307,1748796446592,-15.16699891,0.00016432,2]
[363641308,1748796480954,225.2009868,0.00015446,2]
[363641309,1748796561489,185.608202,0.00013699,2]
[363641354,1748796632429,-5000.0,0.00016268,2]
[363641356,1748796632439,-156.93843963,0.00016331,2]
[363641358,1748796632449,-634.34,0.00016428,3]
[363641360,1748796632459,-317.17,0.00016428,3]
[363641362,1748796632469,-158.58,0.00016428,3]
[363641364,1748796632479,-475.78,0.00016428,3]
[363641366,1748796632489,-294.91963883,0.00016428,2]
[363641368,1748796632498,-1200.0,0.00016429,2]
[363641370,1748796632508,-300.0,0.0001643,2]
[363641372,1748796632517,-300.0,0.0001643,2]
[363641374,1748796632527,-300.0,0.0001643,2]
[363641376,1748796632536,-50000.0,0.00016431,2]
[363641378,1748796632546,-500.0,0.00016431,2]
[363641380,1748796632555,-500.0,0.00016431,2]
[363641382,1748796632565,-500.0,0.00016431,2]
[363641384,1748796632574,-500.0,0.00016431,2]
[363641386,1748796632583,-500.0,0.00016431,2]
[363641388,1748796632593,-500.0,0.00016431,2]
[363641390,1748796632602,-500.0,0.00016431,2]
[363641392,1748796632612,-500.0,0.00016431,2]
[363641394,1748796632621,-500.0,0.00016431,2]
[363641396,1748796632632,-500.0,0.00016431,2]
[363641399,1748796632642,-500.0,0.00016431,2]
[363641401,1748796632652,-500.0,0.00016431,2]
[363641403,1748796632661,-500.0,0.00016431,2]
[363641405,1748796632670,-500.0,0.00016431,2]
[363641407,1748796632680,-500.0,0.00016431,2]
[363641409,1748796632690,-500.0,0.00016431,2]
[363641411,1748796632700,-500.0,0.00016431,2]
[363641413,1748796632709,-500.0,0.00016431,2]
[363641415,1748796632718,-500.0,0.00016431,2]
[363641417,1748796632728,-500.0,0.00016431,2]
[363641419,1748796632738,-500.0,0.00016431,2]
[363641421,1748796632748,-500.0,0.00016431,2]
[363641423,1748796632758,-500.0,0.00016431,2]
[363641425,1748796632768,-500.0,0.00016431,2]
[363641427,1748796632777,-500.0,0.00016431,2]
[363641429,1748796632787,-500.0,0.00016431,2]
[363641431,1748796632796,-500.0,0.00016431,2]
[363641433,1748796632806,-500.0,0.00016431,2]
[363641435,1748796632815,-216.66993961,0.00016431,2]
[363641437,1748796632824,-500.0,0.00016431,2]
[363641439,1748796632833,-151.0,0.00016436,2]
[363641441,1748796632843,-1000.0,0.00016437,2]
[363641443,1748796632853,-500.0,0.00016437,2]
[363641445,1748796632863,-866.75692657,0.00016437,2]
[363641447,1748796632872,-866.75692657,0.00016437,2]
[363641449,1748796632882,-500.0,0.00016437,2]
[363641451,1748796632892,-866.75692657,0.00016437,2]
[363641453,1748796632902,-153.01480786,0.00016437,2]
[363641455,1748796632911,-866.75692657,0.00016437,2]
[363641457,1748796632921,-603.68092275,0.00016437,2]
[363641460,1748796632937,-263.07600382,0.00016437,2]
[363641462,1748796632946,-63.19049606,0.00016437,2]
[363641680,1748796635082,204.36321381,0.00024657,120]
[363642016,1748796638620,-803.56643051,0.00016437,2]
[363642018,1748796638630,-866.75692657,0.00016437,2]
[363642020,1748796638641,-866.75692657,0.00016437,2]
[363642022,1748796638650,-866.75692657,0.00016437,2]
[363642024,1748796638659,-866.75692657,0.00016437,2]
[363642026,1748796638669,-866.75692657,0.00016437,2]
[363642028,1748796638678,-866.75692657,0.00016437,2]
[363642030,1748796638688,-866.75692657,0.00016437,2]
[363642032,1748796638698,-866.75692657,0.00016437,2]
[363642034,1748796638707,-866.75692657,0.00016437,2]
[363642037,1748796638717,-866.75692657,0.00016437,2]
[363642039,1748796638727,-866.75692657,0.00016437,2]
[363642041,1748796638736,-1490.99253089,0.00016437,2]
[363642043,1748796638746,-1490.99253089,0.00016437,2]
[363642045,1748796638756,-1490.99253089,0.00016437,2]
[363642047,1748796638765,-1490.99253089,0.00016437,2]
[363642049,1748796638774,-1490.99253089,0.00016437,2]
[363642051,1748796638783,-1490.99253089,0.00016437,2]
[363642053,1748796638792,-1490.99253089,0.00016437,2]
[363642055,1748796638801,-1490.99253089,0.00016437,2]
[363642057,1748796638811,-1490.99253089,0.00016437,2]
[363642059,1748796638820,-1490.99253089,0.00016437,2]
[363642061,1748796638830,-470.0,0.00016438,2]
[363642063,1748796638839,-469.60915009,0.00016438,2]
[363642064,1748796638848,-430.0,0.00016438,2]
[363642067,1748796638859,-413.78658815,0.00016438,2]
[363642069,1748796638868,-430.0,0.00016438,2]
[363642071,1748796638877,-430.0,0.00016438,2]
[363642073,1748796638888,-430.0,0.00016438,2]
[363642075,1748796638898,-430.0,0.00016438,2]
[363642077,1748796638907,-430.0,0.00016438,2]
[363642079,1748796638917,-276.23505333,0.00016438,2]
[363642081,1748796638926,-385.79130909,0.00016438,2]
[363642083,1748796638935,-430.0,0.00016438,2]
[363642085,1748796638945,-430.0,0.00016438,2]
[363642087,1748796638955,-430.0,0.00016438,2]
[363642089,1748796638965,-430.0,0.00016438,2]
[363642091,1748796638975,-430.0,0.00016438,2]
[363642093,1748796638984,-439.96834035,0.00016438,2]
[363642095,1748796638993,-430.0,0.00016438,2]
[363642097,1748796639004,-430.0,0.00016438,2]
[363642099,1748796639013,-312.36548307,0.00016438,2]
[363642101,1748796639022,-430.0,0.00016438,2]
[363642103,1748796639033,-430.0,0.00016438,2]
[363642105,1748796639043,-430.0,0.00016438,2]
[363642107,1748796639053,-430.0,0.00016438,2]
[363642109,1748796639063,-430.0,0.00016438,2]
[363642111,1748796639073,-430.0,0.00016438,2]
[363642113,1748796639083,-430.0,0.00016438,2]
[363642115,1748796639092,-430.77599743,0.00016438,2]
[363642117,1748796639101,-430.0,0.00016438,2]
[363642119,1748796639110,-430.0,0.00016438,2]
[363642121,1748796639120,-430.0,0.00016438,2]
[363642123,1748796639129,-430.0,0.00016438,2]
[363642125,1748796639139,-430.0,0.00016438,2]
[363642127,1748796639148,-430.0,0.00016438,2]
[363642129,1748796639157,-430.46977629,0.00016438,2]
[363642131,1748796639167,-373.3488749,0.00016438,2]
[363642133,1748796639176,-403.07429824,0.00016438,2]
[363642135,1748796639186,-430.0,0.00016438,2]
[363642137,1748796639195,-430.0,0.00016438,2]
[363642139,1748796639205,-430.0,0.00016438,2]
[363642141,1748796639215,-430.0,0.00016438,2]
[363642143,1748796639225,-430.0,0.00016438,2]
[363642145,1748796639234,-430.0,0.00016438,2]
[363642147,1748796639243,-430.0,0.00016438,2]
[363642149,1748796639253,-430.0,0.00016438,2]
[363642151,1748796639262,-430.0,0.00016438,2]
[363642153,1748796639272,-430.0,0.00016438,2]
[363642155,1748796639282,-430.0,0.00016438,2]
[363642157,1748796639292,-358.907453,0.00016438,2]
[363642160,1748796639303,-430.0,0.00016438,2]
[363642161,1748796639312,-430.0,0.00016438,2]
[363642164,1748796639323,-376.54163954,0.00016438,2]
[363642166,1748796639333,-430.0,0.00016438,2]
[363642168,1748796639343,-430.0,0.00016438,2]
[363642170,1748796639352,-430.0,0.00016438,2]
[363642172,1748796639361,-430.0,0.00016438,2]
[363642174,1748796639371,-430.0,0.00016438,2]
[363642176,1748796639380,-430.0,0.00016438,2]
[363642178,1748796639389,-430.0,0.00016438,2]
[363642180,1748796639398,-457.69367326,0.00016438,2]
[363642182,1748796639408,-430.0,0.00016438,2]
[363642184,1748796639417,-430.0,0.00016438,2]
[363642186,1748796639427,-430.0,0.00016438,2]
[363642188,1748796639436,-394.0415995,0.00016438,2]
[363642190,1748796639446,-430.0,0.00016438,2]
[363642192,1748796639455,-430.0,0.00016438,2]
[363642194,1748796639465,-540.79488643,0.00016438,2]
[363642196,1748796639475,-430.79415525,0.00016438,2]
[363642198,1748796639485,-430.0,0.00016438,2]
[363642200,1748796639494,-430.0,0.00016438,2]
[363642202,1748796639504,-430.0,0.00016438,2]
[363642204,1748796639514,-324.53541914,0.00016438,2]
[363642206,1748796639523,-430.0,0.00016438,2]
[363642208,1748796639533,-430.0,0.00016438,2]
[363642210,1748796639543,-430.0,0.00016438,2]
[363642212,1748796639552,-430.0,0.00016438,2]
[363642214,1748796639562,-430.0,0.00016438,2]
[363642216,1748796639572,-430.0,0.00016438,2]
[363642218,1748796639582,-430.0,0.00016438,2]
[363642220,1748796639592,-430.0,0.00016438,2]
[363642222,1748796639602,-430.0,0.00016438,2]
[363642225,1748796639611,-430.0,0.00016438,2]
[363642227,1748796639621,-430.0,0.00016438,2]
[363642229,1748796639630,-430.0,0.00016438,2]
[363642231,1748796639640,-430.0,0.00016438,2]
[363642233,1748796639649,-430.0,0.00016438,2]
[363642235,1748796639658,-430.0,0.00016438,2]
[363642237,1748796639668,-430.0,0.00016438,2]
[363642240,1748796639677,-430.0,0.00016438,2]
[363642242,1748796639687,-430.0,0.00016438,2]
[363642244,1748796639697,-430.0,0.00016438,2]
[363642246,1748796639706,-370.0,0.00016438,2]
[363642248,1748796639718,-355.15836169,0.00016438,2]
[363642250,1748796639728,-325.63700617,0.00016438,2]
[363642252,1748796639737,-430.0,0.00016438,2]
[363642254,1748796639747,-430.0,0.00016438,2]
[363642256,1748796639757,-500.0,0.00016438,2]
[363642259,1748796639766,-430.0,0.00016438,2]
[363642261,1748796639776,-430.0,0.00016438,2]
[363642263,1748796639785,-430.0,0.00016438,2]
[363642265,1748796639795,-430.0,0.00016438,2]
[363642267,1748796639804,-430.0,0.00016438,2]
[363642269,1748796639814,-430.0,0.00016438,2]
[363642271,1748796639823,-430.0,0.00016438,2]
[363642273,1748796639833,-430.0,0.00016438,2]
[363642275,1748796639842,-430.0,0.00016438,2]
[363642277,1748796639851,-430.0,0.00016438,2]
[363642279,1748796639861,-336.49254424,0.00016438,2]
[363642281,1748796639870,-430.0,0.00016438,2]
[363642283,1748796639880,-430.0,0.00016438,2]
[363642285,1748796639890,-430.0,0.00016438,2]
[363642287,1748796639899,-430.0,0.00016438,2]
[363642289,1748796639909,-430.0,0.00016438,2]
[363642291,1748796639919,-430.0,0.00016438,2]
[363642293,1748796639929,-430.0,0.00016438,2]
[363642295,1748796639938,-430.0,0.00016438,2]
[363642297,1748796639948,-430.0,0.00016438,2]
[363642299,1748796639958,-430.0,0.00016438,2]
[363642301,1748796639967,-430.0,0.00016438,2]
[363642303,1748796639977,-516.86694141,0.00016438,2]
[363642305,1748796639986,-430.0,0.00016438,2]
[363642307,1748796639995,-430.0,0.00016438,2]
[363642309,1748796640005,-430.0,0.00016438,2]
[363642311,1748796640014,-430.0,0.00016438,2]
[363642313,1748796640024,-430.0,0.00016438,2]
[363642315,1748796640037,-431.12883978,0.00016438,2]
[363642317,1748796640047,-430.0,0.00016438,2]
[363642319,1748796640057,-430.0,0.00016438,2]
[363642322,1748796640067,-430.0,0.00016438,2]
[363642323,1748796640077,-430.0,0.00016438,2]
[363642325,1748796640088,-430.0,0.00016438,2]
[363642327,1748796640097,-430.0,0.00016438,2]
[363642329,1748796640107,-430.0,0.00016438,2]
[363642331,1748796640117,-450.0,0.00016438,2]
[363642333,1748796640126,-400.0,0.00016438,2]
[363642335,1748796640136,-430.0,0.00016438,2]
[363642337,1748796640145,-430.0,0.00016438,2]
[363642339,1748796640155,-430.0,0.00016438,2]
[363642341,1748796640164,-430.0,0.00016438,2]
[363642344,1748796640174,-430.0,0.00016438,2]
[363642346,1748796640184,-430.0,0.00016438,2]
[363642360,1748796640307,-430.0,0.00016438,2]
[363642362,1748796640319,-430.0,0.00016438,2]
[363642364,1748796640329,-196.73012193,0.00016438,2]
[363642366,1748796640339,-430.0,0.00016438,2]
[363642368,1748796640349,-400.13105978,0.00016438,2]
[363642370,1748796640359,-430.0,0.00016438,2]
[363642373,1748796640370,-430.0,0.00016438,2]
[363642374,1748796640379,-400.5083285,0.00016438,2]
[363642376,1748796640391,-430.0,0.00016438,2]
[363642379,1748796640401,-430.0,0.00016438,2]
[363642381,1748796640410,-451.77726781,0.00016438,2]
[363642383,1748796640419,-430.0,0.00016438,2]
[363642385,1748796640429,-430.0,0.00016438,2]
[363642387,1748796640439,-400.0,0.00016438,2]
[363642389,1748796640448,-430.0,0.00016438,2]
[363642391,1748796640458,-430.0,0.00016438,2]
[363642393,1748796640467,-430.0,0.00016438,2]
[363642395,1748796640476,-430.0,0.00016438,2]
[363642397,1748796640485,-430.0,0.00016438,2]
[363642399,1748796640495,-430.0,0.00016438,2]
[363642402,1748796640504,-430.0,0.00016438,2]
[363642404,1748796640513,-432.13598396,0.00016438,2]
[363642406,1748796640522,-430.0,0.00016438,2]
[363642408,1748796640531,-430.0,0.00016438,2]
[363642410,1748796640540,-430.0,0.00016438,2]
[363642412,1748796640550,-430.0,0.00016438,2]
[363642414,1748796640559,-430.0,0.00016438,2]
[363642416,1748796640569,-430.0,0.00016438,2]
[363642418,1748796640578,-430.0,0.00016438,2]
[363642420,1748796640587,-430.0,0.00016438,2]
[363642422,1748796640597,-430.0,0.00016438,2]
[363642423,1748796640606,-402.81062279,0.00016438,2]
[363642426,1748796640616,-430.0,0.00016438,2]
[363642428,1748796640625,-430.0,0.00016438,2]
[363642430,1748796640634,-430.0,0.00016438,2]
[363642432,1748796640645,-430.0,0.00016438,2]
[363642434,1748796640655,-543.84658708,0.00016438,2]
[363642435,1748796640664,-430.0,0.00016438,2]
[363642437,1748796640674,-430.0,0.00016438,2]
[363642439,1748796640683,-430.0,0.00016438,2]
[363642441,1748796640692,-430.0,0.00016438,2]
[363642443,1748796640702,-430.0,0.00016438,2]
[363642445,1748796640711,-430.0,0.00016438,2]
[363642447,1748796640721,-430.0,0.00016438,2]
[363642449,1748796640730,-430.0,0.00016438,2]
[363642451,1748796640739,-430.0,0.00016438,2]
[363642453,1748796640749,-374.1227884,0.00016438,2]
[363642455,1748796640758,-430.0,0.00016438,2]
[363642457,1748796640767,-430.0,0.00016438,2]
[363642459,1748796640777,-430.0,0.00016438,2]
[363642461,1748796640786,-463.68643929,0.00016438,2]
[363642463,1748796640795,-430.0,0.00016438,2]
[363642465,1748796640805,-430.0,0.00016438,2]
[363642467,1748796640814,-430.0,0.00016438,2]
[363642469,1748796640824,-430.0,0.00016438,2]
[363642471,1748796640833,-430.0,0.00016438,2]
[363642473,1748796640842,-430.0,0.00016438,2]
[363642475,1748796640851,-430.0,0.00016438,2]
[363642477,1748796640860,-430.0,0.00016438,2]
[363642479,1748796640869,-430.0,0.00016438,2]
[363642481,1748796640880,-430.0,0.00016438,2]
[363642483,1748796640891,-430.0,0.00016438,2]
[363642485,1748796640900,-430.0,0.00016438,2]
[363642487,1748796640910,-430.0,0.00016438,2]
[363642489,1748796640920,-223.50757008,0.00016438,2]
[363642490,1748796640930,-430.0,0.00016438,2]
[363642492,1748796640939,-430.0,0.00016438,2]
[363642494,1748796640949,-430.0,0.00016438,2]
[363642496,1748796640959,-471.26148848,0.00016438,2]
[363642498,1748796640968,-430.0,0.00016438,2]
[363642500,1748796640977,-430.0,0.00016438,2]
[363642502,1748796640987,-430.0,0.00016438,2]
[363642504,1748796640998,-430.0,0.00016438,2]
[363642506,1748796641007,-430.0,0.00016438,2]
[363642509,1748796641017,-430.0,0.00016438,2]
[363642511,1748796641028,-430.0,0.00016438,2]
[363642514,1748796641042,-430.0,0.00016438,2]
[363642516,1748796641052,-430.0,0.00016438,2]
[363642517,1748796641061,-430.0,0.00016438,2]
[363642519,1748796641071,-430.0,0.00016438,2]
[363642522,1748796641082,-355.89828228,0.00016438,2]
[363642523,1748796641092,-430.0,0.00016438,2]
[363642526,1748796641102,-430.0,0.00016438,2]
[363642528,1748796641113,-430.0,0.00016438,2]
[363642530,1748796641122,-430.0,0.00016438,2]
[363642532,1748796641132,-430.0,0.00016438,2]
[363642534,1748796641142,-511.0270788,0.00016438,2]
[363642536,1748796641152,-430.0,0.00016438,2]
[363642538,1748796641161,-520.0,0.00016438,2]
[363642539,1748796641170,-430.0,0.00016438,2]
[363642541,1748796641180,-430.0,0.00016438,2]
[363642543,1748796641189,-430.0,0.00016438,2]
[363642545,1748796641199,-430.0,0.00016438,2]
[363642547,1748796641208,-431.70424533,0.00016438,2]
[363642549,1748796641218,-332.44511363,0.00016438,2]
[363642551,1748796641228,-430.0,0.00016438,2]
[363642553,1748796641237,-430.0,0.00016438,2]
[363642555,1748796641247,-430.0,0.00016438,2]
[363642557,1748796641256,-450.37450979,0.00016438,2]
[363642559,1748796641265,-430.0,0.00016438,2]
[363642561,1748796641274,-203.21947115,0.00016438,2]
[363642563,1748796641283,-151.02126116,0.00016438,2]
[363642565,1748796641293,-432.53819276,0.00016438,2]
[363642567,1748796641304,-430.0,0.00016438,2]
[363642569,1748796641313,-430.0,0.00016438,2]
[363642571,1748796641323,-436.57179941,0.00016438,2]
[363642573,1748796641334,-430.0,0.00016438,2]
[363642575,1748796641343,-350.13444175,0.00016438,2]
[363642577,1748796641352,-430.0,0.00016438,2]
[363642579,1748796641362,-430.0,0.00016438,2]
[363642581,1748796641371,-430.0,0.00016438,2]
[363642583,1748796641381,-430.0,0.00016438,2]
[363642585,1748796641392,-430.0,0.00016438,2]
[363642587,1748796641401,-430.0,0.00016438,2]
[363642589,1748796641411,-430.0,0.00016438,2]
[363642591,1748796641420,-430.0,0.00016438,2]
[363642593,1748796641430,-430.0,0.00016438,2]
[363642595,1748796641439,-430.0,0.00016438,2]
[363642597,1748796641449,-243.68424395,0.00016438,2]
[363642599,1748796641458,-430.0,0.00016438,2]
[363642601,1748796641468,-402.10128529,0.00016438,2]
[363642603,1748796641477,-430.0,0.00016438,2]
[363642605,1748796641486,-430.0,0.00016438,2]
[363642606,1748796641495,-430.0,0.00016438,2]
[363642608,1748796641505,-430.0,0.00016438,2]
[363642610,1748796641515,-430.0,0.00016438,2]
[363642612,1748796641524,-430.0,0.00016438,2]
[363642614,1748796641534,-430.0,0.00016438,2]
[363642616,1748796641543,-494.42079598,0.00016438,2]
[363642618,1748796641553,-430.0,0.00016438,2]
[363642620,1748796641562,-430.0,0.00016438,2]
[363642622,1748796641573,-430.0,0.00016438,2]
[363642624,1748796641583,-430.0,0.00016438,2]
[363642626,1748796641593,-430.0,0.00016438,2]
[363642628,1748796641602,-430.0,0.00016438,2]
[363642630,1748796641612,-430.0,0.00016438,2]
[363642632,1748796641621,-440.92,0.00016438,2]
[363642634,1748796641631,-430.0,0.00016438,2]
[363642636,1748796641641,-430.0,0.00016438,2]
[363642638,1748796641650,-430.0,0.00016438,2]
[363642640,1748796641660,-430.0,0.00016438,2]
[363642642,1748796641670,-503.94987709,0.00016438,2]
[363642644,1748796641679,-430.0,0.00016438,2]
[363642646,1748796641689,-430.0,0.00016438,2]
[363642648,1748796641699,-430.0,0.00016438,2]
[363642650,1748796641708,-430.0,0.00016438,2]
[363642652,1748796641718,-430.0,0.00016438,2]
[363642654,1748796641727,-430.0,0.00016438,2]
[363642656,1748796641736,-430.0,0.00016438,2]
[363642658,1748796641745,-430.0,0.00016438,2]
[363642660,1748796641754,-538.88588065,0.00016438,2]
[363642662,1748796641764,-430.0,0.00016438,2]
[363642664,1748796641773,-430.0,0.00016438,2]
[363642666,1748796641782,-430.0,0.00016438,2]
[363642668,1748796641792,-430.0,0.00016438,2]
[363642670,1748796641801,-430.0,0.00016438,2]